fUSD/lending_fUSD_20240214
["ID","MTS","AMOUNT","RATE_DAILY","PERIOD"]
[314044848,1707945087772,-151.02152,0.00039148,20]
[314044849,1707945087781,-151.021521,0.00039148,21]
[314044850,1707945087790,-151.02142,0.00039148,20]
[314044851,1707945087800,-556.75,0.00039178,7]
[314044852,1707945087811,-586.75,0.00039178,7]
[314044853,1707945087820,-799.09,0.00039178,7]
[314044854,1707945087829,-444.00401977,0.00039178,7]
[314044855,1707945087838,-899.57,0.00039178,7]
[314044856,1707945087848,-2544.37,0.00039178,7]
[314044857,1707945087857,-647.67,0.00039178,7]
[314044858,1707945087866,-500.0,0.00039178,7]
[314044859,1707945087877,-558.18,0.00039178,7]
[314044860,1707945087887,-694.58,0.00039178,7]
[314044861,1707945087896,-1144.53,0.00039178,7]
[314044862,1707945087906,-500.0,0.00039178,7]
[314044863,1707945087915,-602.05436128,0.00039178,7]
[314044864,1707945087924,-500.0,0.00039178,7]
[314044865,1707945087934,-500.0,0.00039178,7]
[314044866,1707945087944,-3424.69,0.00039178,7]
[314044867,1707945087954,-818.43,0.00039178,7]
[314044868,1707945087965,-5392.04,0.00039178,7]
[314044869,1707945087974,-503.92,0.00039178,7]
[314044870,1707945087984,-500.0,0.00039178,7]
[314044871,1707945087994,-906.19,0.00039178,7]
[314044872,1707945088003,-549.23,0.00039178,7]
[314044873,1707945088013,-500.0,0.00039178,7]
[314044874,1707945088022,-573.58573254,0.00039178,7]
[314044875,1707945088034,-822.06,0.00039178,7]
[314044876,1707945088044,-500.0,0.00039178,7]
[314044877,1707945088053,-3341.45,0.00039178,7]
[314044878,1707945088062,-677.12,0.00039178,7]
[314044879,1707945088071,-500.0,0.00039178,7]
[314044880,1707945088080,-1761.82,0.00039178,7]
[314044881,1707945088090,-609.74,0.00039178,7]
[314044882,1707945088100,-802.92,0.00039178,7]
[314044883,1707945088109,-500.0,0.00039178,7]
[314044884,1707945088118,-500.0,0.00039178,7]
[314044885,1707945088129,-13582.07,0.00039178,7]
[314044886,1707945088139,-500.0,0.00039178,7]
[314044887,1707945088149,-500.0,0.00039178,7]
[314044888,1707945088158,-953.89,0.00039178,7]
[314044889,1707945088168,-500.0,0.00039178,7]
[314044890,1707945088177,-6234.22,0.00039178,7]
[314044891,1707945088186,-586.78,0.00039178,7]
[314044892,1707945088196,-500.0,0.00039178,7]
[314044893,1707945088205,-1606.08,0.00039178,7]
[314044894,1707945088214,-500.0,0.00039178,7]
[314044895,1707945088223,-595.12,0.00039178,7]
[314044896,1707945088233,-500.0,0.00039178,7]
[314044897,1707945088243,-1047.58,0.00039178,7]
[314044898,1707945088253,-681.83,0.00039178,7]
[314044899,1707945088263,-515.63,0.00039178,7]
[314044900,1707945088272,-500.0,0.00039178,7]
[314044901,1707945088282,-1810.87,0.00039178,7]
[314044902,1707945088291,-805.31,0.00039178,7]
[314044903,1707945088301,-603.11,0.00039178,7]
[314044904,1707945088310,-500.0,0.00039178,7]
[314044905,1707945088320,-500.0,0.00039178,7]
[314044906,1707945088329,-513.07,0.00039178,7]
[314044907,1707945088339,-500.0,0.00039178,7]
[314044908,1707945088348,-499.69982339,0.00039178,7]
[314044909,1707945088358,-841.02,0.00039178,7]
[314044910,1707945088368,-780.8,0.00039178,7]
[314044911,1707945088378,-662.19,0.00039178,7]
[314044912,1707945088388,-1486.64,0.00039178,7]
[314044913,1707945088398,-2858.66,0.00039178,7]
[314044914,1707945088407,-500.0,0.00039178,7]
[314044915,1707945088416,-2047.91,0.00039178,7]
[314044916,1707945088425,-590.33,0.00039178,7]
[314044917,1707945088434,-786.93,0.00039178,7]
[314044918,1707945088443,-577.68,0.00039178,7]
[314044919,1707945088452,-1000.0,0.00039178,120]
[314044920,1707945088461,-3628.12,0.00039178,7]
[314044921,1707945088470,-4757.12,0.00039178,7]
[314044922,1707945088480,-1991.03,0.00039178,7]
[314044923,1707945088489,-598.4,0.00039178,7]
[314044924,1707945088627,-612.33,0.00039178,2]
[314044925,1707945088637,-500.0,0.00039178,7]
[314044926,1707945088646,-500.0,0.00039178,7]
[314044927,1707945088655,-617.82,0.00039178,7]
[314044928,1707945088664,-502.43,0.00039178,7]
[314044929,1707945088673,-2139.36,0.00039178,7]
[314044930,1707945088682,-807.41,0.00039178,7]
[314044931,1707945088690,-685.44,0.00039178,7]
[314044932,1707945088700,-623.63136381,0.00039178,7]
[314044933,1707945088709,-730.2,0.00039178,7]
[314044934,1707945088718,-2211.07,0.00039178,7]
[314044935,1707945088727,-500.0,0.00039178,7]
[314044936,1707945088737,-500.0,0.00039178,7]
[314044937,1707945088746,-711.33,0.00039178,7]
[314044938,1707945088754,-743.99,0.00039178,7]
[314044939,1707945088764,-2294.91,0.00039178,7]
[314044940,1707945088772,-2043.37,0.00039178,7]
[314044941,1707945088782,-500.0,0.00039178,7]
[314044942,1707945088792,-594.55,0.00039178,7]
[314044943,1707945088802,-6637.56,0.00039178,7]
[314044944,1707945088811,-500.0,0.00039178,7]
[314044945,1707945088820,-500.0,0.00039178,7]
[314044946,1707945088829,-1343.45,0.00039178,7]
[314044947,1707945088838,-595.97,0.00039178,7]
[314044948,1707945088847,-500.0,0.00039178,7]
[314044949,1707945088856,-1831.02,0.00039178,7]
[314044950,1707945088866,-1215.55,0.00039178,7]
[314044951,1707945088876,-1575.34,0.00039178,7]
[314044952,1707945088886,-1240.3,0.00039178,7]
[314044953,1707945088895,-1949.84,0.00039178,7]
[314044954,1707945088904,-500.0,0.00039178,7]
[314044955,1707945088913,-500.0,0.00039178,7]
[314044956,1707945088922,-1376.91,0.00039178,7]
[314044957,1707945088931,-1838.93,0.00039178,7]
[314044958,1707945088940,-1020.07,0.00039178,7]
[314044959,1707945088951,-500.0,0.00039178,7]
[314044960,1707945088964,-500.0,0.00039178,7]
[314044961,1707945088973,-1264.88,0.00039178,7]
[314044962,1707945088982,-4521.24,0.00039178,7]
[314044963,1707945088993,-4808.1,0.00039178,7]
[314044964,1707945089002,-791.66,0.00039178,7]
[314044965,1707945089011,-500.0,0.00039178,7]
[314044966,1707945089020,-1751.89,0.00039178,7]
[314044967,1707945089030,-660.03,0.00039178,7]
[314044968,1707945089040,-500.0,0.00039178,7]
[314044969,1707945089049,-665.94,0.00039178,7]
[314044970,1707945089058,-1411.1,0.00039178,7]
[314044971,1707945089068,-720.52,0.00039178,7]
[314044972,1707945089077,-1028.68,0.00039178,7]
[314044973,1707945089086,-1101.95,0.00039178,7]
[314044974,1707945089096,-633.08,0.00039178,7]
[314044975,1707945089105,-679.4,0.00039178,7]
[314044976,1707945089114,-1588.43,0.00039178,7]
[314044977,1707945089123,-859.31,0.00039178,7]
[314044978,1707945089133,-570.05,0.00039178,7]
[314044979,1707945089142,-2455.03,0.00039178,7]
[314044980,1707945089151,-559.41,0.00039178,7]
[314044981,1707945089160,-6828.37,0.00039178,7]
[314044982,1707945089169,-7718.39,0.00039178,7]
[314044983,1707945089178,-500.0,0.00039178,7]
[314044984,1707945089186,-500.0,0.00039178,7]
[314044985,1707945089195,-500.0,0.00039178,7]
[314044986,1707945089205,-500.0,0.00039178,7]
[314044987,1707945089214,-730.4,0.00039178,7]
[314044988,1707945089224,-1547.02,0.00039178,7]
[314044989,1707945089233,-1211.6,0.00039178,7]
[314044990,1707945089242,-592.22,0.00039178,7]
[314044991,1707945089250,-1187.29,0.00039178,7]
[314044992,1707945089260,-500.0,0.00039178,7]
[314044993,1707945089270,-6862.69,0.00039178,7]
[314044994,1707945089279,-1752.35,0.00039178,7]
[314044995,1707945089289,-565.71,0.00039178,7]
[314044996,1707945089298,-551.53,0.00039178,7]
[314044997,1707945089307,-500.0,0.00039178,7]
[314044998,1707945089317,-828.25,0.00039178,7]
[314044999,1707945089326,-216.32916109,0.00039178,7]
[314045000,1707945089335,-270.37851463,0.00039178,7]
[314045001,1707945089344,-865.42,0.00039178,7]
[314045002,1707945089353,-1003.79,0.00039178,7]
[314045003,1707945089362,-5366.99,0.00039178,7]
[314045004,1707945089372,-1623.54,0.00039178,7]
[314045005,1707945089382,-1200.22,0.00039178,7]
[314045006,1707945089391,-558.49,0.00039178,7]
[314045007,1707945089401,-500.0,0.00039178,7]
[314045008,1707945089410,-1014.56,0.00039178,7]
[314045009,1707945089419,-995.34,0.00039178,7]
[314045010,1707945089427,-746.35,0.00039178,7]
[314045011,1707945089437,-501.11,0.00039178,7]
[314045012,1707945089446,-1044.44,0.00039178,7]
[314045013,1707945089455,-1716.87,0.00039178,7]
[314045014,1707945089463,-1848.23,0.00039178,7]
[314045015,1707945089472,-1168.36,0.00039178,7]
[314045016,1707945089481,-587.47,0.00039178,7]
[314045017,1707945089490,-2233.44,0.00039178,7]
[314045018,1707945089499,-500.0,0.00039178,7]
[314045019,1707945089508,-983.47,0.00039178,7]
[314045020,1707945089517,-580.91,0.00039178,7]
[314045021,1707945089526,-826.29,0.00039178,7]
[314045022,1707945089536,-972.52,0.00039178,7]
[314045023,1707945089545,-898.19,0.00039178,7]
[314045024,1707945089555,-500.0,0.00039178,7]
[314045025,1707945089564,-254.18,0.00039178,7]
[314045026,1707945089573,-2032.9,0.00039178,7]
[314045027,1707945089583,-7693.98,0.00039178,7]
[314045028,1707945089593,-500.0,0.00039178,7]
[314045029,1707945089602,-500.0,0.00039178,7]
[314045030,1707945089611,-647.49,0.00039178,7]
[314045031,1707945089620,-551.52,0.00039178,7]
[314045032,1707945089630,-778.33,0.00039178,7]
[314045033,1707945089639,-500.0,0.00039178,7]
[314045034,1707945089648,-500.0,0.00039178,7]
[314045035,1707945089658,-3552.29,0.00039178,7]
[314045036,1707945089667,-630.27,0.00039178,7]
[314045037,1707945089676,-3310.79,0.00039178,7]
[314045038,1707945089685,-569.11,0.00039178,7]
[314045039,1707945089695,-500.0,0.00039178,7]
[314045040,1707945089705,-500.0,0.00039178,7]
[314045041,1707945089714,-1313.58,0.00039178,7]
[314045042,1707945089723,-4440.3863522,0.0003918,2]
[314045043,1707945089732,-4774.52577621,0.0003918,2]
[314045044,1707945089741,-7488.3827928,0.0003918,2]
[314045045,1707945089750,-1847.1907774,0.0003918,2]
[314045046,1707945089759,-347.36,0.000392,2]
[314045047,1707945089768,-504.42622712,0.000392,6]
[314045048,1707945089777,-275.5,0.000392,2]
[314045049,1707945089787,-153.54697604,0.00039233,3]
[314045050,1707945089796,-151.021521,0.00039248,21]
[314045051,1707945089806,-957.87,0.0003926,2]
[314045052,1707945089815,-263.29612717,0.0003928,20]
[314045053,1707945089824,-1923.0,0.0003928,20]
[314045054,1707945089832,-396.0,0.0003928,20]
[314045055,1707945089842,-1412.11989496,0.0003928,20]
[314045056,1707945089851,-150.0,0.00039283,2]
[314045057,1707945089861,-500.0,0.00039286,2]
[314045058,1707945089870,-200.0,0.000393,13]
[314045059,1707945089880,-151.44662469,0.0003931,7]
[314045060,1707945089889,-651.282159,0.00039344,2]
[314045061,1707945089897,-816.874501,0.00039344,2]
[314045062,1707945089907,-677.786138,0.00039344,2]
[314045063,1707945089915,-2281.099806,0.00039344,2]
[314045064,1707945089925,-285.499401,0.00039344,2]
[314045065,1707945089933,-2281.099807,0.00039344,2]
[314045066,1707945089944,-285.499402,0.00039344,2]
[314045067,1707945089958,-2281.099806,0.00039344,2]
[314045068,1707945089967,-285.499401,0.00039344,2]
[314045069,1707945089976,-2281.099806,0.00039344,2]
[314045070,1707945089986,-285.499401,0.00039344,2]
[314045071,1707945089996,-151.0129,0.00039348,16]
[314045072,1707945090006,-151.021521,0.00039348,21]
[314045073,1707945090015,-347.36,0.00039393,2]
[314045074,1707945090024,-150.0,0.00039397,7]
[314045075,1707945090033,-2348.35,0.000394,7]
[314045076,1707945090043,-2404.89,0.000394,7]
[314045077,1707945090051,-166.13,0.00039407,2]
[314045078,1707945090061,-500.0,0.00039432,2]
[314045079,1707945090070,-154.0,0.00039444,7]
[314045080,1707945090079,-1815.54,0.00039446,5]
[314045081,1707945090088,-171.02152,0.00039448,20]
[314045082,1707945090098,-151.5897189,0.00039448,16]
[314045083,1707945090107,-151.021521,0.00039448,21]
[314045084,1707945090117,-4078.155712,0.00039448,20]
[314045085,1707945090127,-556.75,0.00039452,7]
[314045086,1707945090136,-586.75,0.00039452,7]
[314045087,1707945090145,-799.09,0.00039452,7]
[314045088,1707945090155,-899.57,0.00039452,7]
[314045089,1707945090165,-2544.37,0.00039452,7]
[314045090,1707945090174,-647.67,0.00039452,7]
[314045091,1707945090183,-545.77350548,0.00039452,7]
[314045092,1707945090193,-558.18,0.00039452,7]
[314045093,1707945090203,-694.58,0.00039452,7]
[314045094,1707945090213,-1144.53,0.00039452,7]
[314045095,1707945090223,-500.0,0.00039452,7]
[314045096,1707945090233,-500.0,0.00039452,7]
[314045097,1707945090242,-500.0,0.00039452,7]
[314045098,1707945090251,-3424.69,0.00039452,7]
[314045099,1707945090261,-818.43,0.00039452,7]
[314045100,1707945090271,-5392.04,0.00039452,7]
[314045101,1707945090280,-503.92,0.00039452,7]
[314045102,1707945090290,-500.0,0.00039452,7]
[314045103,1707945090300,-906.19,0.00039452,7]
[314045104,1707945090309,-549.23,0.00039452,7]
[314045105,1707945090319,-500.0,0.00039452,7]
[314045106,1707945090328,-822.06,0.00039452,7]
[314045107,1707945090337,-500.0,0.00039452,7]
[314045108,1707945090347,-3341.45,0.00039452,7]
[314045109,1707945090357,-677.12,0.00039452,7]
[314045110,1707945090366,-500.0,0.00039452,7]
[314045111,1707945090376,-1761.82,0.00039452,7]
[314045112,1707945090385,-609.74,0.00039452,7]
[314045113,1707945090394,-469.03979011,0.00039452,7]
[314045114,1707945090403,-500.0,0.00039452,7]
[314045115,1707945090412,-802.92,0.00039452,7]
[314045116,1707945090421,-13582.07,0.00039452,7]
[314045117,1707945090430,-500.0,0.00039452,7]
[314045118,1707945090439,-500.0,0.00039452,7]
[314045119,1707945090449,-953.89,0.00039452,7]
[314045120,1707945090458,-500.0,0.00039452,7]
[314045121,1707945090467,-6234.22,0.00039452,7]
[314045122,1707945090476,-586.78,0.00039452,7]
[314045123,1707945090486,-500.0,0.00039452,7]
[314045124,1707945090494,-1606.08,0.00039452,7]
[314045125,1707945090504,-500.0,0.00039452,7]
[314045126,1707945090513,-595.12,0.00039452,7]
[314045127,1707945090522,-500.0,0.00039452,7]
[314045128,1707945090531,-1047.58,0.00039452,7]
[314045129,1707945090540,-681.83,0.00039452,7]
[314045130,1707945090549,-515.63,0.00039452,7]
[314045131,1707945090558,-309.89297852,0.00039452,7]
[314045132,1707945090568,-1810.87,0.00039452,7]
[314045133,1707945090577,-805.31,0.00039452,7]
[314045134,1707945090586,-603.11,0.00039452,7]
[314045135,1707945090595,-500.0,0.00039452,7]
[314045136,1707945090604,-500.0,0.00039452,7]
[314045137,1707945090614,-513.07,0.00039452,7]
[314045138,1707945090623,-500.0,0.00039452,7]
[314045139,1707945090633,-841.02,0.00039452,7]
[314045140,1707945090642,-780.8,0.00039452,7]
[314045141,1707945090651,-662.19,0.00039452,7]
[314045142,1707945090661,-1486.64,0.00039452,7]
[314045143,1707945090671,-2858.66,0.00039452,7]
[314045144,1707945090680,-504.59573311,0.00039452,7]
[314045145,1707945090689,-2047.91,0.00039452,7]
[314045146,1707945090699,-590.33,0.00039452,7]
[314045147,1707945090708,-786.93,0.00039452,7]
[314045148,1707945090718,-577.68,0.00039452,7]
[314045149,1707945090727,-1000.0,0.00039452,120]
[314045150,1707945090736,-3628.12,0.00039452,7]
[314045151,1707945090745,-4757.12,0.00039452,7]
[314045152,1707945090889,-1991.03,0.00039452,7]
[314045153,1707945090901,-598.4,0.00039452,7]
[314045154,1707945090911,-612.33,0.00039452,2]
[314045155,1707945090920,-500.0,0.00039452,7]
[314045156,1707945090930,-500.0,0.00039452,7]
[314045157,1707945090939,-617.82,0.00039452,7]
[314045158,1707945090954,-2139.36,0.00039452,7]
[314045159,1707945090963,-502.43,0.00039452,7]
[314045160,1707945090972,-685.44,0.00039452,7]
[314045161,1707945090981,-807.41,0.00039452,7]
[314045162,1707945090991,-730.2,0.00039452,7]
[314045163,1707945091000,-2211.07,0.00039452,7]
[314045164,1707945091010,-500.0,0.00039452,7]
[314045165,1707945091019,-500.0,0.00039452,7]
[314045166,1707945091029,-711.33,0.00039452,7]
[314045167,1707945091039,-743.99,0.00039452,7]
[314045168,1707945091048,-2294.91,0.00039452,7]
[314045169,1707945091057,-2043.37,0.00039452,7]
[314045170,1707945091066,-500.0,0.00039452,7]
[314045171,1707945091076,-594.55,0.00039452,7]
[314045172,1707945091086,-6637.56,0.00039452,7]
[314045173,1707945091095,-500.0,0.00039452,7]
[314045174,1707945091104,-500.0,0.00039452,7]
[314045175,1707945091113,-1343.45,0.00039452,7]
[314045176,1707945091123,-595.97,0.00039452,7]
[314045177,1707945091133,-1831.02,0.00039452,7]
[314045178,1707945091142,-1215.55,0.00039452,7]
[314045179,1707945091151,-1575.34,0.00039452,7]
[314045180,1707945091160,-1240.3,0.00039452,7]
[314045181,1707945091169,-1949.84,0.00039452,7]
[314045182,1707945091179,-500.0,0.00039452,7]
[314045183,1707945091188,-500.0,0.00039452,7]
[314045184,1707945091197,-1376.91,0.00039452,7]
[314045185,1707945091206,-1838.93,0.00039452,7]
[314045186,1707945091215,-1020.07,0.00039452,7]
[314045187,1707945091224,-500.0,0.00039452,7]
[314045188,1707945091233,-500.0,0.00039452,7]
[314045189,1707945091242,-1264.88,0.00039452,7]
[314045190,1707945091252,-4521.24,0.00039452,7]
[314045191,1707945091261,-4808.1,0.00039452,7]
[314045192,1707945091270,-791.66,0.00039452,7]
[314045193,1707945091280,-500.0,0.00039452,7]
[314045194,1707945091289,-1751.89,0.00039452,7]
[314045195,1707945091298,-660.03,0.00039452,7]
[314045196,1707945091309,-500.0,0.00039452,7]
[314045197,1707945091318,-665.94,0.00039452,7]
[314045198,1707945091328,-1411.1,0.00039452,7]
[314045199,1707945091337,-720.52,0.00039452,7]
[314045200,1707945091346,-1028.68,0.00039452,7]
[314045201,1707945091355,-1101.95,0.00039452,7]
[314045202,1707945091365,-633.08,0.00039452,7]
[314045203,1707945091374,-679.4,0.00039452,7]
[314045204,1707945091383,-1588.43,0.00039452,7]
[314045205,1707945091393,-859.31,0.00039452,7]
[314045206,1707945091402,-570.05,0.00039452,7]
[314045207,1707945091411,-2455.03,0.00039452,7]
[314045208,1707945091420,-6828.37,0.00039452,7]
[314045209,1707945091429,-7718.39,0.00039452,7]
[314045210,1707945091438,-500.0,0.00039452,7]
[314045211,1707945091447,-500.0,0.00039452,7]
[314045212,1707945091456,-500.0,0.00039452,7]
[314045213,1707945091466,-500.0,0.00039452,7]
[314045214,1707945091475,-730.4,0.00039452,7]
[314045215,1707945091485,-1547.02,0.00039452,7]
[314045216,1707945091494,-1211.6,0.00039452,7]
[314045217,1707945091503,-592.22,0.00039452,7]
[314045218,1707945091512,-1187.29,0.00039452,7]
[314045219,1707945091522,-500.0,0.00039452,7]
[314045220,1707945091531,-6862.69,0.00039452,7]
[314045221,1707945091540,-1752.35,0.00039452,7]
[314045222,1707945091549,-565.71,0.00039452,7]
[314045223,1707945091558,-551.53,0.00039452,7]
[314045224,1707945091567,-500.0,0.00039452,7]
[314045225,1707945091577,-828.25,0.00039452,7]
[314045226,1707945091586,-865.42,0.00039452,7]
[314045227,1707945091595,-1003.79,0.00039452,7]
[314045228,1707945091604,-5366.99,0.00039452,7]
[314045229,1707945091613,-1623.54,0.00039452,7]
[314045230,1707945091623,-1200.22,0.00039452,7]
[314045231,1707945091632,-558.49,0.00039452,7]
[314045232,1707945091641,-500.0,0.00039452,7]
[314045233,1707945091651,-1014.56,0.00039452,7]
[314045234,1707945091660,-995.34,0.00039452,7]
[314045235,1707945091669,-746.35,0.00039452,7]
[314045236,1707945091678,-501.11,0.00039452,7]
[314045237,1707945091687,-1044.44,0.00039452,7]
[314045238,1707945091696,-1716.87,0.00039452,7]
[314045239,1707945091705,-1848.23,0.00039452,7]
[314045240,1707945091714,-1168.36,0.00039452,7]
[314045241,1707945091723,-587.47,0.00039452,7]
[314045242,1707945091733,-2233.44,0.00039452,7]
[314045243,1707945091742,-500.0,0.00039452,7]
[314045244,1707945091754,-983.47,0.00039452,7]
[314045245,1707945091763,-580.91,0.00039452,7]
[314045246,1707945091772,-826.29,0.00039452,7]
[314045247,1707945091782,-972.52,0.00039452,7]
[314045248,1707945091792,-898.19,0.00039452,7]
[314045249,1707945091802,-500.0,0.00039452,7]
[314045250,1707945091811,-2032.9,0.00039452,7]
[314045251,1707945091821,-7693.98,0.00039452,7]
[314045252,1707945091830,-500.0,0.00039452,7]
[314045253,1707945091840,-500.0,0.00039452,7]
[314045254,1707945091850,-647.49,0.00039452,7]
[314045255,1707945091859,-551.52,0.00039452,7]
[314045256,1707945091870,-778.33,0.00039452,7]
[314045257,1707945091881,-500.0,0.00039452,7]
[314045258,1707945091890,-500.0,0.00039452,7]
[314045259,1707945091899,-3552.29,0.00039452,7]
[314045260,1707945091908,-630.27,0.00039452,7]
[314045261,1707945091921,-3310.79,0.00039452,7]
[314045262,1707945091933,-569.11,0.00039452,7]
[314045263,1707945091944,-500.0,0.00039452,7]
[314045264,1707945091954,-87987.6570546,0.00039452,2]
[314045265,1707945091966,-150.0,0.00039454,2]
[314045266,1707945091976,-170.0,0.0003946,48]
[314045267,1707945091985,-163.35741115,0.00039499,2]
[314045268,1707945091994,-1600.0,0.000395,12]
[314045269,1707945092005,-947.15,0.000395,7]
[314045270,1707945092014,-200.0,0.000395,14]
[314045271,1707945092023,-153.78,0.000395,3]
[314045272,1707945092032,-153.78,0.000395,3]
[314045273,1707945092041,-153.78,0.000395,3]
[314045274,1707945092051,-153.78,0.000395,3]
[314045275,1707945092060,-167.67568039,0.00039513,2]
[314045276,1707945092070,-151.021521,0.00039548,21]
[314045277,1707945092079,-307.54,0.0003956,2]
[314045278,1707945092089,-500.0,0.00039579,2]
[314045279,1707945092098,-347.36,0.00039586,2]
[314045280,1707945092107,-22542.96997442,0.000396,2]
[314045281,1707945092116,-7401.0,0.00039609,2]
[314045282,1707945092126,-2922.0,0.00039609,2]
[314045283,1707945092135,-2285.0,0.00039609,2]
[314045284,1707945092143,-8150.0,0.00039609,2]
[314045285,1707945092152,-19811.0,0.00039609,2]
[314045286,1707945092160,-1037.0,0.00039609,2]
[314045287,1707945092169,-8096.0,0.0003963,2]
[314045288,1707945092179,-151.021521,0.00039648,21]
[314045289,1707945092188,-1923.0,0.00039673,20]
[314045290,1707945092197,-396.0,0.00039673,20]
[314045291,1707945092206,-405.27,0.000397,3]
[314045292,1707945092215,-405.27,0.000397,3]
[314045293,1707945092224,-405.27,0.000397,3]
[314045294,1707945092233,-405.27,0.000397,3]
[314045295,1707945092243,-405.27,0.000397,3]
[314045296,1707945092252,-405.27,0.000397,3]
[314045297,1707945092262,-405.27,0.000397,3]
[314045298,1707945092271,-405.27,0.000397,3]
[314045299,1707945092281,-405.27,0.000397,3]
[314045300,1707945092291,-405.27,0.000397,3]
[314045301,1707945092300,-405.27,0.000397,3]
[314045302,1707945092311,-405.27,0.000397,3]
[314045303,1707945092321,-405.27,0.000397,3]
[314045304,1707945092331,-405.27,0.000397,3]
[314045305,1707945092341,-405.27,0.000397,3]
[314045306,1707945092351,-405.27,0.000397,3]
[314045307,1707945092361,-405.27,0.000397,3]
[314045308,1707945092370,-405.27,0.000397,3]
[314045309,1707945092381,-405.27,0.000397,3]
[314045310,1707945092391,-405.27,0.000397,3]
[314045311,1707945092401,-556.75,0.00039726,7]
[314045312,1707945092410,-586.75,0.00039726,7]
[314045313,1707945092419,-799.09,0.00039726,7]
[314045314,1707945092429,-899.57,0.00039726,7]
[314045315,1707945092438,-2544.37,0.00039726,7]
[314045316,1707945092448,-647.67,0.00039726,7]
[314045317,1707945092458,-558.18,0.00039726,7]
[314045318,1707945092467,-694.58,0.00039726,7]
[314045319,1707945092477,-1144.53,0.00039726,7]
[314045320,1707945092487,-500.0,0.00039726,7]
[314045321,1707945092496,-500.0,0.00039726,7]
[314045322,1707945092505,-500.0,0.00039726,7]
[314045323,1707945092515,-3424.69,0.00039726,7]
[314045324,1707945092524,-818.43,0.00039726,7]
[314045325,1707945092534,-503.92,0.00039726,7]
[314045326,1707945092544,-5392.04,0.00039726,7]
[314045327,1707945092553,-314.19,0.00039726,7]
[314045328,1707945092563,-906.19,0.00039726,7]
[314045329,1707945092573,-549.23,0.00039726,7]
[314045330,1707945092583,-500.0,0.00039726,7]
[314045331,1707945092593,-822.06,0.00039726,7]
[314045332,1707945092602,-500.0,0.00039726,7]
[314045333,1707945092611,-3341.45,0.00039726,7]
[314045334,1707945092621,-677.12,0.00039726,7]
[314045335,1707945092632,-500.0,0.00039726,7]
[314045336,1707945092642,-1761.82,0.00039726,7]
[314045337,1707945092651,-609.74,0.00039726,7]
[314045338,1707945092661,-1250.0,0.00039726,2]
[314045339,1707945092671,-500.0,0.00039726,7]
[314045340,1707945092680,-802.92,0.00039726,7]
[314045341,1707945092689,-13582.07,0.00039726,7]
[314045342,1707945092699,-228.89713967,0.00039726,7]
[314045343,1707945092708,-500.0,0.00039726,7]
[314045344,1707945092718,-953.89,0.00039726,7]
[314045345,1707945092727,-500.0,0.00039726,7]
[314045346,1707945092737,-6234.22,0.00039726,7]
[314045347,1707945092747,-586.78,0.00039726,7]